fUST/lending_fUST_20251101
["ID","MTS","AMOUNT","RATE_DAILY","PERIOD"]
[392773085,1761939038950,-500.0,0.00035989,4]
[392773087,1761939038960,-505.76635963,0.00035989,4]
[392773089,1761939038970,-501.55769477,0.00035989,4]
[392773091,1761939038980,-500.0,0.00035989,4]
[392773093,1761939038990,-501.47298368,0.00035989,4]
[392773094,1761939038999,-500.0,0.00035989,4]
[392773095,1761939039009,-508.55662748,0.00035989,4]
[392773096,1761939039018,-500.0,0.00035989,4]
[392773097,1761939039029,-504.44996609,0.00035989,4]
[392773098,1761939039038,-500.0,0.00035989,4]
[392773099,1761939039047,-501.78144309,0.00035989,4]
[392773100,1761939039060,-501.75403448,0.00035989,4]
[392773101,1761939039069,-502.34698247,0.00035989,4]
[392773102,1761939039079,-500.0,0.00035989,4]
[392773103,1761939039088,-501.45000683,0.00035989,4]
[392773104,1761939039098,-505.20422378,0.00035989,4]
[392773105,1761939039110,-502.34033204,0.00035989,4]
[392773106,1761939039120,-501.94550222,0.00035989,4]
[392773107,1761939039129,-500.0,0.00035989,4]
[392773108,1761939039139,-500.0,0.00035989,4]
[392773109,1761939039149,-502.01795458,0.00035989,4]
[392773110,1761939039159,-500.0,0.00035989,4]
[392773111,1761939039170,-509.24763933,0.00035989,4]
[392773112,1761939039179,-500.0,0.00035989,4]
[392773113,1761939039188,-500.0,0.00035989,4]
[392773114,1761939039199,-500.9774981,0.00035989,4]
[392773115,1761939039208,-500.0,0.00035989,4]
[392773116,1761939039218,-501.0259689,0.00035989,2]
[392773117,1761939039228,-503.06002398,0.00035989,4]
[392773118,1761939039239,-639.11,0.00035989,4]
[392773119,1761939039249,-500.0,0.00035989,4]
[392773120,1761939039260,-500.0,0.00035989,4]
[392773121,1761939039270,-500.0,0.00035989,4]
[392773122,1761939039279,-500.0,0.00035989,4]
[392773123,1761939039289,-500.0,0.00035989,4]
[392773124,1761939039299,-500.0,0.00035989,4]
[392773125,1761939039312,-502.50837423,0.00035989,4]
[392773126,1761939039323,-502.14604529,0.00035989,4]
[392773127,1761939039334,-500.0,0.00035989,4]
[392773128,1761939039344,-503.13744774,0.00035989,4]
[392773129,1761939039356,-503.0323733,0.00035989,4]
[392773130,1761939039365,-500.0,0.00035989,4]
[392773131,1761939039375,-503.27099645,0.00035989,4]
[392773132,1761939039385,-500.0,0.00035989,4]
[392773133,1761939039397,-259.10961274,0.00035989,4]
[392773134,1761939039406,-503.08790311,0.00035989,4]
[392773135,1761939039416,-500.0,0.00035989,4]
[392773136,1761939039426,-500.0,0.00035989,4]
[392773137,1761939039436,-502.750341,0.00035989,4]
[392773138,1761939039446,-500.0,0.00035989,4]
[392773139,1761939039455,-500.0,0.00035989,4]
[392773140,1761939039464,-501.23444859,0.00035989,4]
[392773141,1761939039473,-500.0,0.00035989,4]
[392773142,1761939039483,-502.6947019,0.00035989,4]
[392773143,1761939039492,-501.22665998,0.00035989,4]
[392773144,1761939039502,-500.0,0.00035989,4]
[392773145,1761939039511,-520.34093038,0.00035989,4]
[392773146,1761939039520,-500.0,0.00035989,4]
[392773147,1761939039529,-500.0,0.00035989,4]
[392773148,1761939039537,-500.0,0.00035989,4]
[392773149,1761939039546,-495.59033697,0.00035989,4]
[392773150,1761939039557,-506.6208984,0.00035989,4]
[392773151,1761939039566,-501.39569142,0.00035989,4]
[392773152,1761939039574,-507.10072734,0.00035989,4]
[392773153,1761939039583,-503.00582004,0.00035989,4]
[392773154,1761939039592,-500.0,0.00035989,4]
[392773155,1761939039601,-603.32496276,0.00035989,4]
[392773156,1761939039610,-504.44569082,0.00035989,4]
[392773157,1761939039619,-500.0,0.00035989,4]
[392773158,1761939039628,-500.0,0.00035989,4]
[392773159,1761939039637,-500.0,0.00035989,4]
[392773160,1761939039646,-501.57033728,0.00035989,4]
[392773161,1761939039655,-500.0,0.00035989,4]
[392773162,1761939039665,-404.0,0.00035989,4]
[392773163,1761939039677,-505.29002152,0.00035989,4]
[392773164,1761939039686,-607.41231665,0.00035989,4]
[392773165,1761939039696,-500.7901224,0.00035989,4]
[392773166,1761939039706,-574.4,0.00035989,4]
[392773167,1761939039716,-502.11399582,0.00035989,4]
[392773168,1761939039725,-500.0,0.00035989,4]
[392773169,1761939039735,-502.17075411,0.00035989,4]
[392773170,1761939039744,-500.0,0.00035989,4]
[392773171,1761939039753,-489.6101043,0.00035989,4]
[392773172,1761939039762,-500.0,0.00035989,4]
[392773173,1761939039771,-500.0,0.00035989,4]
[392773174,1761939039780,-502.48229652,0.00035989,4]
[392773175,1761939039789,-502.19136655,0.00035989,4]
[392773176,1761939039797,-501.98298326,0.00035989,4]
[392773177,1761939039807,-500.52280359,0.00035989,4]
[392773178,1761939039816,-501.97285014,0.00035989,4]
[392773179,1761939039829,-500.78294035,0.00035989,4]
[392773180,1761939039839,-500.0,0.00035989,4]
[392773181,1761939039848,-500.5462553,0.00035989,4]
[392773182,1761939039857,-500.0,0.00035989,4]
[392773183,1761939039868,-501.84821156,0.00035989,4]
[392773184,1761939039877,-500.0,0.00035989,4]
[392773185,1761939039886,-500.0,0.00035989,4]
[392773186,1761939039895,-500.0,0.00035989,4]
[392773187,1761939039905,-500.0,0.00035989,4]
[392773188,1761939039914,-500.0,0.00035989,4]
[392773189,1761939039923,-500.0,0.00035989,4]
[392773190,1761939039932,-500.0,0.00035989,4]
[392773191,1761939039942,-500.0,0.00035989,4]
[392773192,1761939039952,-500.0,0.00035989,4]
[392773193,1761939039961,-500.0,0.00035989,4]
[392773194,1761939039971,-500.0,0.00035989,4]
[392773195,1761939039980,-369.79,0.00035989,4]
[392773196,1761939039988,-500.0,0.00035989,4]
[392773197,1761939039997,-185.69328619,0.00035989,4]
[392773198,1761939040006,-500.0,0.00035989,4]
[392773199,1761939040016,-500.0,0.00035989,4]
[392773200,1761939040025,-500.0,0.00035989,4]
[392773201,1761939040035,-500.0,0.00035989,4]
[392773202,1761939040044,-504.85319859,0.00035989,4]
[392773203,1761939040056,-337.19080854,0.00035989,4]
[392773229,1761939046659,-500.66662206,0.00029358,4]
[392773230,1761939046670,-500.0,0.00029358,4]
[392773231,1761939046680,-500.0,0.00029632,4]
[392773232,1761939046689,-170.42,0.0002989,10]
[392773233,1761939046699,-634.09,0.00034263,4]
[392773234,1761939046708,-634.09,0.00035154,4]
[392773235,1761939046717,-634.09,0.00035978,4]
[392773236,1761939046727,-634.09,0.00035978,4]
[392773237,1761939046736,-634.09,0.00035978,4]
[392773238,1761939046745,-634.09,0.00035978,4]
[392773239,1761939046754,-634.09,0.00035978,4]
[392773240,1761939046763,-634.09,0.00035978,4]
[392773241,1761939046773,-634.09,0.00035978,4]
[392773242,1761939046783,-634.27793087,0.00035978,4]
[392773243,1761939046793,-162.80919146,0.00035989,4]
[392773244,1761939046802,-500.0,0.00035989,4]
[392773245,1761939046812,-500.0,0.00035989,4]
[392773246,1761939046821,-500.0,0.00035989,4]
[392773247,1761939046835,-500.0,0.00035989,4]
[392773248,1761939046844,-506.86143618,0.00035989,4]
[392773249,1761939046855,-500.64752138,0.00035989,4]
[392773250,1761939046864,-500.0,0.00035989,4]
[392773251,1761939046874,-500.0,0.00035989,4]
[392773252,1761939046883,-501.63018226,0.00035989,4]
[392773253,1761939046892,-500.0,0.00035989,4]
[392773254,1761939046901,-401.91609455,0.00035989,4]
[392773255,1761939046914,-99.00067057,0.00035989,4]
[392773256,1761939046923,-400.99932943,0.00035989,4]
[392773257,1761939047866,-99.00067057,0.00035989,4]
[392773258,1761939047876,-505.02073508,0.00035989,2]
[392773259,1761939047886,-502.70016353,0.00035989,4]
[392773260,1761939047895,-466.22872418,0.00035989,4]
[392773261,1761939047904,-174.55243451,0.00035989,4]
[392773267,1761939086955,150.0,0.00025657,2]
[392773270,1761939400295,150.0,0.00025658,2]
[392773274,1761939480108,197.23,0.00017982,7]
[392773301,1761939715739,150.0,0.00025657,2]
[392773319,1761940032397,150.0,0.00025657,2]
[392773323,1761940076859,1325.75922105,0.00025955,2]
[392773324,1761940076881,722.65895695,0.00025955,2]
[392773381,1761940231776,-173.0,0.00026109,2]
[392773383,1761940231788,-272.0788873,0.00026109,2]
[392773386,1761940231801,-27.9211127,0.00026109,2]
[392773388,1761940231811,-300.0,0.00026109,2]
[392773390,1761940231821,-300.0,0.00026109,2]
[392773392,1761940231831,-1200.0,0.00026109,2]
[392773395,1761940231842,-171.3948873,0.00026109,2]
[392773398,1761940231866,-128.6051127,0.00026109,2]
[392773401,1761940231882,-730.76673769,0.0002611,2]
[392773403,1761940231898,-8588.78635796,0.0002611,2]
[392773405,1761940231910,-573.7842734,0.00027157,2]
[392773408,1761940231921,-3634.5614687,0.00027297,2]
[392773410,1761940231933,-150.0,0.00027302,2]
[392773412,1761940231944,-19740.04511802,0.00027396,2]
[392773414,1761940231957,-857.279338,0.00027396,2]
[392773417,1761940231972,-682.79400798,0.00027396,2]
[392773419,1761940231986,-2200.10207672,0.00027396,2]
[392773422,1761940232001,-282.34546992,0.00027396,2]
[392773424,1761940232014,-395.15453008,0.00027396,2]
[392773427,1761940232027,-4897.6845862,0.00027396,2]
[392773800,1761940237700,-3502.66480029,0.00027396,2]
[392773802,1761940237710,-500.64154164,0.00027397,2]
[392773804,1761940237719,-502.08758574,0.00027397,2]
[392773806,1761940237729,-502.12309743,0.00027397,2]
[392773808,1761940237739,-500.78738275,0.00027397,2]
[392773810,1761940237751,-503.45031303,0.00027397,2]
[392773812,1761940237762,-500.0,0.00027397,2]
[392773814,1761940237772,-503.00669554,0.00027397,2]
[392773816,1761940237782,-507.13817913,0.00027397,2]
[392773818,1761940237794,-504.02750471,0.00027397,2]
[392773821,1761940237805,-502.330047,0.00027397,2]
[392773823,1761940237816,-200.0,0.00027397,2]
[392773825,1761940237827,-504.04280358,0.00027397,2]
[392773827,1761940237838,-510.96363506,0.00027397,2]
[392773829,1761940237849,-500.0,0.00027397,2]
[392773831,1761940237860,-507.14287737,0.00027397,2]
[392773834,1761940237871,-500.0,0.00027397,2]
[392773836,1761940237882,-506.97981576,0.00027397,2]
[392773838,1761940237893,-505.98578695,0.00027397,2]
[392773840,1761940237904,-502.59447083,0.00027397,2]
[392773842,1761940237915,-500.0,0.00027397,2]
[392773844,1761940237927,-500.0,0.00027655,4]
[392773847,1761940237938,-177.0,0.00027657,2]
[392773849,1761940237949,-500.0,0.00027929,4]
[392773851,1761940237960,-500.0,0.00028203,4]
[392773853,1761940237971,-500.0,0.00028477,4]
[392773855,1761940237981,-500.0,0.00028733,5]
[392773858,1761940237993,-500.0,0.00028733,5]
[392773860,1761940238003,-560.18735438,0.00028733,5]
[392773862,1761940238015,-500.80188264,0.00028733,5]
[392773864,1761940238024,-500.0,0.00028751,4]
[392773866,1761940238034,-500.0,0.00029025,4]
[392773868,1761940238044,-292.78489527,0.00029267,2]
[392773870,1761940238054,-1000.0,0.00029281,5]
[392773872,1761940238064,-433.46703428,0.00029299,4]
[392773874,1761940238074,-160.0,0.00029345,2]
[392773876,1761940238084,-1000.0,0.00029358,2]
[392773879,1761940238095,-500.0,0.00029358,4]
[392773881,1761940238106,-500.0,0.00029358,4]
[392773883,1761940238123,-326.67269862,0.00029358,4]
[392773886,1761940238135,-504.22406109,0.00029358,4]
[392773888,1761940238146,-1000.0,0.00029358,2]
[392773890,1761940238157,-501.2777528,0.00029358,4]
[392773892,1761940238170,-503.21371491,0.00029358,4]
[392773894,1761940238181,-502.62482846,0.00029358,4]
[392773897,1761940238192,-500.0,0.00029358,4]
[392773899,1761940238204,-500.0,0.00029358,4]
[392773901,1761940238214,-500.0,0.00029358,4]
[392773903,1761940238224,-504.10191818,0.00029358,4]
[392773905,1761940238234,-503.41102499,0.00029358,4]
[392773907,1761940238243,-501.9198049,0.00029358,4]
[392773909,1761940238257,-500.0,0.00029358,4]
[392773911,1761940238267,-501.23961517,0.00029358,4]
[392773914,1761940238278,-552.85316396,0.00029358,4]
[392773916,1761940238289,-503.96931029,0.00029358,4]
[392773918,1761940238299,-500.0,0.00029358,4]
[392773920,1761940238310,-500.0,0.00029358,4]
[392773922,1761940238321,-505.41713584,0.00029358,4]
[392773924,1761940238335,-549.95977069,0.00029358,4]
[392773926,1761940238345,-503.10234074,0.00029358,4]
[392773929,1761940238355,-500.0,0.00029358,4]
[392773931,1761940238366,-503.81556584,0.00029358,4]
[392773933,1761940238376,-500.0,0.00029358,4]
[392773935,1761940238387,-500.0,0.00029358,4]
[392773937,1761940238398,-500.0,0.00029358,4]
[392773939,1761940238408,-500.0,0.00029358,4]
[392773941,1761940238419,-500.0,0.00029358,4]
[392773943,1761940238429,-185.94770627,0.00029358,4]
[392773945,1761940238440,-501.30719104,0.00029358,4]
[392773947,1761940238451,-500.0,0.00029358,4]
[392773950,1761940238461,-180.0,0.00029358,4]
[392773952,1761940238471,-502.17576023,0.00029358,4]
[392773954,1761940238481,-500.0,0.00029358,4]
[392773970,1761940238626,-500.0,0.00029358,4]
[392773973,1761940238640,-462.52940721,0.00029358,4]
[392773975,1761940238650,-508.53605387,0.00029358,4]
[392773977,1761940238660,-500.0,0.00029358,4]
[392773979,1761940238670,-646.58936227,0.00029358,4]
[392773981,1761940238680,-500.41984767,0.00029358,4]
[392773983,1761940238689,-502.50509632,0.00029358,4]
[392773985,1761940238699,-502.72380712,0.00029358,4]
[392773987,1761940238708,-482.19254155,0.00029358,4]
[392773989,1761940238717,-504.84165059,0.00029358,4]
[392773991,1761940238727,-500.0,0.00029358,4]
[392773993,1761940238736,-502.18196527,0.00029358,4]
[392773995,1761940238750,-501.03886989,0.00029358,4]
[392773997,1761940238760,-500.0,0.00029358,2]
[392773999,1761940238769,-500.0,0.00029367,4]
[392774001,1761940238779,-1000.0,0.00029632,2]
[392774003,1761940238789,-407.87,0.00029632,2]
[392774005,1761940238800,-500.0,0.0002965,5]
[392774007,1761940238809,-204.0,0.00029657,2]
[392774009,1761940238818,-178.06,0.00029784,2]
[392774011,1761940238827,-1500.0,0.00029829,5]
[392774013,1761940238836,-500.0,0.0002987,4]
[392774015,1761940238845,-563.57726057,0.0002987,2]
[392774017,1761940238854,-500.0,0.00029872,4]
[392774019,1761940238863,-151.0,0.00030118,2]
[392774021,1761940238872,-151.0,0.00030118,2]
[392774023,1761940238881,-151.0,0.00030118,2]
[392774025,1761940238891,-151.0,0.00030118,2]
[392774027,1761940238901,-151.0,0.00030118,2]
[392774029,1761940238911,-151.0,0.00030118,2]
[392774031,1761940238921,-151.0,0.00030118,2]
[392774033,1761940238931,-151.0,0.00030118,2]
[392774035,1761940238940,-151.0,0.00030118,2]
[392774037,1761940238949,-151.0,0.00030118,2]
[392774039,1761940238959,-151.0,0.00030118,2]
[392774041,1761940238969,-151.0,0.00030118,2]
[392774043,1761940238979,-151.0,0.00030118,2]
[392774045,1761940238989,-151.0,0.00030118,2]
[392774047,1761940238999,-151.0,0.00030118,2]
[392774049,1761940239010,-151.0,0.00030118,2]
[392774051,1761940239020,-151.0,0.00030118,2]
[392774052,1761940239029,-151.0,0.00030118,2]
[392774054,1761940239039,-151.0,0.00030118,2]
[392774056,1761940239049,-151.0,0.00030118,2]
[392774059,1761940239058,-34508.32319388,0.00030136,2]
[392774061,1761940239071,-2193.4165003,0.00030136,2]
[392774063,1761940239083,-4426.96581769,0.00030136,2]
[392774755,1761940245746,5000.0,0.00026,2]
[392775361,1761940253485,4277.35104305,0.00026,2]
[392775362,1761940253507,722.64895695,0.00026,2]
[392775662,1761940261541,5000.0,0.00026,2]
[392775663,1761940346943,150.0,0.0002589,2]
[392775664,1761940347947,4127.36104305,0.00026,2]
[392775665,1761940347969,872.63895695,0.00026,2]
[392775666,1761940355696,5000.0,0.00026,2]
[392775667,1761940435846,150.0,0.00025047,2]
[392775668,1761940515723,150.0,0.00024986,2]
[392775669,1761940625214,489.971838,0.00013699,2]
[392775670,1761940625426,489.971838,0.00020187,2]
[392775675,1761940662657,150.0,0.0002589,2]
[392775679,1761940742709,150.0,0.00025023,2]
[392775683,1761940822357,150.0,0.00025011,2]
[392775684,1761940826455,150.0,0.000147,30]
[392775685,1761940826825,150.0,0.00016036,30]
[392775686,1761940827223,150.0,0.00017372,30]
[392775687,1761940827631,150.0,0.00018709,30]
[392775688,1761940828054,177.74,0.00020045,30]
[392775689,1761940828452,213.29,0.00021381,30]
[392775690,1761940828863,248.83,0.00022718,30]
[392775691,1761940829260,284.38,0.00024054,30]
[392775692,1761940829660,319.93,0.0002539,30]
[392775696,1761941017382,150.0,0.00025811,2]
[392775697,1761941018573,-1000.0,0.00026416,30]
[392775698,1761941018593,-200.0,0.00026676,2]
[392775699,1761941018614,-489.971838,0.00026676,2]
[392775700,1761941018635,-151.0,0.00027381,2]
[392775701,1761941018655,-151.0,0.00027381,2]
[392775702,1761941018676,-151.0,0.00027381,2]
[392775703,1761941018701,-151.0,0.00027381,2]
[392775704,1761941018724,-151.0,0.00027381,2]
[392775705,1761941018747,-151.0,0.00027381,2]
[392775706,1761941018769,-151.0,0.00027381,2]
[392775707,1761941018792,-151.0,0.00027381,2]
[392775708,1761941018817,-151.0,0.00027381,2]
[392775709,1761941018839,-151.0,0.00027381,2]
[392775710,1761941018862,-151.0,0.00027381,2]
[392775711,1761941018884,-151.0,0.00027381,2]
[392775712,1761941018907,-151.0,0.00027381,2]
[392775713,1761941018929,-151.0,0.00027381,2]
[392775714,1761941018951,-151.0,0.00027381,2]
[392775715,1761941018974,-151.0,0.00027381,2]
[392775716,1761941018997,-151.0,0.00027381,2]
[392775717,1761941019019,-151.0,0.00027381,2]
[392775718,1761941019042,-151.0,0.00027381,2]
[392775719,1761941019065,-151.0,0.00027381,2]
[392775720,1761941019087,-151.0,0.00027381,2]
[392775721,1761941019109,-151.0,0.00027381,2]
[392775722,1761941019131,-151.0,0.00027381,2]
[392775723,1761941019155,-151.0,0.00027381,2]
[392775724,1761941019178,-160.0,0.00027385,2]
[392775725,1761941019199,-663.0,0.00027396,2]
[392775726,1761941019220,-500.0,0.00027397,2]
[392775727,1761941019244,-500.0,0.00027397,2]
[392775728,1761941019264,-615.11922257,0.00027397,2]
[392775729,1761941019284,-500.0,0.00027397,2]
[392775730,1761941019304,-502.86351583,0.00027397,2]
[392775731,1761941019325,-508.33425284,0.00027397,2]
[392775732,1761941019346,-500.0,0.00027397,2]
[392775733,1761941019368,-3180.24128513,0.00027554,2]
[392775734,1761941019389,-500.0,0.00027594,4]
[392775735,1761941019411,-500.0,0.00027594,4]
[392775736,1761941019432,-501.29600269,0.00027594,4]
[392775737,1761941019452,-500.0,0.00027594,4]
[392775738,1761941019472,-501.60515251,0.00027594,4]
[392775739,1761941019492,-500.0,0.00027594,4]
[392775740,1761941019513,-536.36217842,0.00027594,4]
[392775741,1761941019535,-500.0,0.00027594,4]
[392775742,1761941019556,-500.0,0.00027594,4]
[392775743,1761941019576,-500.0,0.00027594,4]
[392775744,1761941019596,-500.0,0.00027594,4]
[392775745,1761941019617,-510.59453884,0.00027594,4]
[392775746,1761941019636,-500.0,0.00027594,4]
[392775747,1761941019656,-500.0,0.00027594,4]
[392775748,1761941019677,-609.54474396,0.00027594,4]
[392775749,1761941019696,-500.0,0.00027594,4]
[392775750,1761941019715,-500.0,0.00027594,4]
[392775751,1761941019735,-500.0,0.00027594,4]
[392775752,1761941019754,-500.0,0.00027594,4]
[392775753,1761941019773,-500.0,0.00027594,4]
[392775754,1761941019794,-500.0,0.00027594,4]
[392775755,1761941019814,-490.47651785,0.00027594,4]
[392775756,1761941019834,-500.0,0.00027594,4]
[392775757,1761941019853,-510.02534369,0.00027594,4]
[392775758,1761941019874,-500.0,0.00027594,4]
[392775759,1761941019893,-500.0,0.00027594,4]
[392775760,1761941019912,-500.0,0.00027594,4]
[392775761,1761941019932,-500.0,0.00027594,4]
[392775762,1761941019951,-500.0,0.00027594,4]
[392775763,1761941019971,-500.0,0.00027594,4]
[392775764,1761941019989,-500.0,0.00027594,4]
[392775765,1761941020008,-500.0,0.00027594,4]
[392775766,1761941020027,-500.0,0.00027594,4]
[392775767,1761941020047,-500.0,0.00027594,4]
[392775768,1761941020068,-505.49879688,0.00027594,4]
[392775769,1761941020089,-500.0,0.00027594,4]
[392775770,1761941020110,-500.0,0.00027594,4]
[392775771,1761941020131,-3374.6824892,0.00027595,2]
[392775772,1761941020152,-222.62547545,0.00027653,2]
[392775773,1761941020172,-500.0,0.00027653,2]
[392775774,1761941020194,-500.0,0.00027653,2]
[392775775,1761941020218,-500.0,0.00027653,2]
[392775776,1761941020238,-634.95897913,0.00027653,2]
[392775777,1761941020261,-500.0,0.00027653,2]
[392775778,1761941020281,-500.0,0.00027653,2]
[392775779,1761941020301,-500.0,0.00027653,2]
[392775780,1761941020324,-500.0,0.00027653,2]
[392775781,1761941020345,-500.0,0.00027653,2]
[392775782,1761941020366,-499.98165257,0.00027653,2]
[392775783,1761941020388,-500.0,0.00027653,2]
[392775784,1761941020408,-500.0,0.00027653,2]
[392775785,1761941020430,-500.0,0.00027653,2]
[392775786,1761941020451,-500.0,0.00027653,2]
[392775787,1761941020474,-487.52893607,0.00027653,2]
[392775788,1761941020501,-290.50091162,0.00027653,2]
[392775789,1761941020527,-500.0,0.00027653,2]
[392775790,1761941020548,-500.0,0.00027653,2]
[392775791,1761941020569,-500.0,0.00027655,4]
[392775792,1761941020587,-503.87968341,0.00027655,4]
[392775793,1761941020607,-503.37182868,0.00027655,4]
[392775794,1761941020627,-500.0,0.00027655,4]
[392775795,1761941020646,-504.39366204,0.00027655,4]
[392775796,1761941020664,-500.0,0.00027655,4]
[392775797,1761941020689,-500.0,0.00027655,4]
[392775798,1761941020708,-537.31,0.00027655,4]
[392775799,1761941020728,-503.26168007,0.00027655,4]
[392775800,1761941020748,-504.32433258,0.00027655,4]
[392775801,1761941020768,-302.69351722,0.00027655,4]
[392775802,1761941020788,-500.0,0.00027655,4]
[392775803,1761941020808,-500.0,0.00027655,4]
[392775804,1761941020828,-500.0,0.00027655,4]
[392775805,1761941020847,-500.0,0.00027655,4]
[392775806,1761941020867,-591.6481595,0.00027655,4]
[392775807,1761941020887,-500.07,0.00027655,4]
[392775808,1761941020907,-500.0,0.00027655,4]
[392775809,1761941020927,-500.0,0.00027655,4]
[392775810,1761941020947,-500.0,0.00027655,4]
[392775811,1761941020969,-502.62699791,0.00027655,4]
[392775812,1761941020988,-500.0,0.00027655,4]
[392775813,1761941021007,-502.65395956,0.00027655,4]
[392775814,1761941021026,-500.0,0.00027655,2]
[392775815,1761941021046,-500.0,0.00027655,4]
[392775816,1761941021068,-625.22,0.00027655,4]
[392775817,1761941021087,-500.0,0.00027655,4]
[392775818,1761941021106,-500.58425622,0.00027655,4]
[392775819,1761941021127,-500.0,0.00027655,4]
[392775820,1761941021236,-502.16717023,0.00027655,4]
[392775821,1761941021256,-504.26931606,0.00027655,4]
[392775822,1761941021276,-500.0,0.00027655,4]
[392775823,1761941021296,-500.0,0.00027655,4]
[392775824,1761941021318,-356.32365121,0.00027655,4]
[392775825,1761941021338,-500.0,0.00027655,4]
[392775826,1761941021357,-501.70185245,0.00027655,4]
[392775827,1761941021377,-504.5503205,0.00027655,4]
[392775828,1761941021396,-500.0,0.00027655,4]
[392775829,1761941021420,-506.15663467,0.00027655,4]
[392775830,1761941021440,-500.0,0.00027655,4]
[392775831,1761941021460,-500.0,0.00027655,4]
[392775832,1761941021480,-503.84634374,0.00027655,4]
[392775833,1761941021501,-500.0,0.00027655,4]
[392775834,1761941021521,-501.1981146,0.00027655,4]
[392775835,1761941021543,-500.0,0.00027655,4]
[392775836,1761941021562,-502.48937323,0.00027655,4]
[392775837,1761941021581,-403.37025099,0.00027655,4]
[392775838,1761941021600,-457.03754437,0.00027655,4]
[392775839,1761941021619,-165.05748183,0.00027655,4]
[392775840,1761941021638,-500.0,0.00027655,4]
[392775841,1761941021658,-500.0,0.00027655,4]
[392775842,1761941021677,-500.0,0.00027655,4]
[392775843,1761941021697,-229.63335549,0.00027655,4]
[392775844,1761941021716,-500.0,0.00027655,4]
[392775845,1761941021736,-500.0,0.00027655,4]
[392775846,1761941021755,-500.0,0.00027655,4]
[392775847,1761941021774,-500.0,0.00027655,4]
[392775848,1761941021793,-500.0,0.00027655,4]
[392775849,1761941021815,-470.6866128,0.00027655,4]
[392775850,1761941021833,-500.0,0.00027655,4]
[392775851,1761941021853,-500.0,0.00027655,4]
[392775852,1761941021872,-500.0,0.00027655,4]
[392775853,1761941021892,-500.0,0.00027655,4]
[392775854,1761941021911,-500.0,0.00027655,4]
[392775855,1761941021931,-500.0,0.00027655,4]
[392775856,1761941021951,-621.39765736,0.00027655,4]
[392775857,1761941021971,-500.0,0.00027655,4]
[392775858,1761941021992,-500.0,0.00027655,4]
[392775859,1761941022011,-512.48,0.00027655,4]
[392775860,1761941022032,-500.0,0.00027655,4]
[392775861,1761941022054,-500.0,0.00027655,4]
[392775862,1761941022074,-500.0,0.00027655,4]
[392775863,1761941022095,-500.0,0.00027655,4]
[392775864,1761941022114,-500.0,0.00027655,4]
[392775865,1761941022134,-500.0,0.00027673,5]
[392775866,1761941022154,-500.0,0.00027673,5]
[392775867,1761941022173,-167.93945882,0.00027769,2]
[392775868,1761941022195,-177.0,0.00027811,2]
[392775869,1761941022216,-546.2,0.00027868,4]
[392775870,1761941022241,-500.0,0.00027868,4]
[392775871,1761941022261,-500.0,0.00027868,4]
[392775872,1761941022281,-636.9552094,0.00027868,4]
[392775873,1761941022301,-500.0,0.00027868,4]
[392775874,1761941022322,-500.0,0.00027868,4]
[392775875,1761941022345,-600.0,0.00027944,30]
[392775879,1761941055375,150.0,0.00025568,2]